Cogmind - Beta 10.2 @@@ ROGUE MODE // 2020.11.05 @ 18:36:07 // Halloween2020/ForbiddenLore Player: blelm Result: Self-destructed Performance ------------- Evolutions (2) 1000 Regions Visited (5) 1000 Robots Destroyed (21) 105 Value Destroyed (354) 354 Prototype IDs (2) 40 Alien Tech Used (0) 0 Bonus (35) 35 TOTAL SCORE: 2534 Bonus ------- Follower Combat Kills 35 Cogmind --------- Core Integrity 550/550 Matter 300/300 Energy 250/250 System Corruption 0% Temperature Cool (0) Movement Rolling (150) Ox5 Location -8/Materials Parts ------- > --- POWER (1) -------- Ion Engine > --- PROPULSION (3) --- Light Treads Compact Wheel > --- UTILITY (5) ------ Humpback > --- WEAPON (2) ------- Assault Rifle Mini Grenade Launcher > --- INVENTORY (24) --- Light Treads Light Treads Light Treads Large Storage Unit Large Storage Unit High-capacity Matter Pod (200) Improved Terrain Scanner Light Armor Plating Improved Light Armor Plating EM Pulse Gun Assault Rifle Assault Rifle Assault Rifle Assault Rifle Slug Cannon Mini Grenade Launcher Hammer Peak State ------------ > --- POWER ------------ Ion Engine > --- PROPULSION ------- Light Treads Compact Wheel > --- UTILITY ---------- Humpback > --- WEAPON ----------- Assault Rifle Slug Cannon > --- INVENTORY -------- Light Treads Light Treads Large Storage Unit Large Storage Unit High-capacity Matter Pod Improved Terrain Scanner Light Armor Plating EM Pulse Gun Assault Rifle Assault Rifle Assault Rifle Assault Rifle Mini Grenade Launcher Mini Grenade Launcher Mini Grenade Launcher Hammer [Rating: 12] Favorites ----------- Power Ion Engine Engine Ion Engine Propulsion Light Treads Treads Light Treads Leg Aluminum Leg Wheel Compact Wheel Utility Large Storage Unit Storage Large Storage Unit Processor Improved Targeting Computer Weapon Assault Rifle Energy Gun EM Pulse Gun Ballistic Gun Assault Rifle Ballistic Cannon Slug Cannon Launcher Mini Grenade Launcher Build | -11 -10 -10 -10 -9 -8 ------- Run | Scr Mat Min Exi Min Mat Slots Evolved 4 | . . . . . 4 Power . | . . . . . . Propulsion 1 | . . . . . 1 Utility 3 | . . . . . 3 Weapon . | . . . . . . Parts Attached 15 | 2 3 4 1 5 . Power 1 | . . . . 1 . Engine 1 | . . . . 1 . Core . | . . . . . . Reactor . | . . . . . . Propulsion 2 | 2 . . . . . Treads 1 | 1 . . . . . Leg . | . . . . . . Wheel 1 | 1 . . . . . Hover . | . . . . . . Flight . | . . . . . . Utility 4 | . 3 . 1 . . Device . | . . . . . . Storage 3 | . 2 . 1 . . Processor 1 | . 1 . . . . Hackware . | . . . . . . Protection . | . . . . . . Artifact . | . . . . . . Weapon 8 | . . 4 . 4 . Energy Gun 2 | . . 2 . . . Energy Cannon . | . . . . . . Ballistic Gun 1 | . . . . 1 . Ballistic Cannon 1 | . . . . 1 . Launcher 4 | . . 2 . 2 . Special Weapon . | . . . . . . Impact Weapon . | . . . . . . Slashing Weapon . | . . . . . . Piercing Weapon . | . . . . . . Special Melee Weapon . | . . . . . . Unidentified Prototypes . | . . . . . . Parts Lost 2 | . . . . 2 . Power 1 | . . . . 1 . Propulsion . | . . . . . . Utility . | . . . . . . Weapon 1 | . . . . 1 . Highest Loss Streak 2 | . . . . 2 . Average Slot Usage (%) 95 | . 98 100 92 79 . Engine 13 | . 14 14 14 12 . Treads 14 | . 14 14 14 14 . Wheel 14 | . 14 14 14 14 . Storage 23 | . 16 28 20 14 . Processor 1 | . 9 . . . . Energy Gun 11 | . 14 12 14 . . Ballistic Gun 13 | . 14 14 14 9 . Launcher 2 | . . 1 . 10 . Naked Turns . | . . . . . . Heaviest Build 94 | 13 41 41 89 94 . Greatest Support 16 | 16 16 16 16 16 . Greatest Overweight (x) 5 | . 2 2 5 5 . Average Overweight (x) 2 | . . 2 3 5 . Largest Inventory Capacity 24 | 6 16 16 24 24 . Average Capacity 16 | 6 10 16 19 24 . Most Carried 17 | 6 10 14 17 17 . Average Carried 12 | 3 7 11 14 16 . Final Capacity 24 | 6 16 16 24 24 24 Final Carried 17 | 3 10 14 17 17 17 Class Distribution -------------------- 77% | Mutant 22% | Hauler-Mutant Dominant Class ---------------- Mutant | -10/Materials Mutant | -10/Mines Hauler-Mutant | -10/Exiles Hauler-Mutant | -9/Mines Hauler-Mutant | -8/Materials Resources | -11 -10 -10 -10 -9 -8 ----------- Run | Scr Mat Min Exi Min Mat Matter Collected 542 | 226 48 119 10 139 . Remotely . | . . . . . . Salvage Created 578 | 100 90 233 . 155 . Parts 29 | 2 4 16 . 7 . Haulers Intercepted 1 | . 1 . . . . Recyclers Shooed 3 | 1 1 . . 1 . Parts Field Recycled . | . . . . . . Retrieved Matter . | . . . . . . Parts Self-Destructed . | . . . . . . Prevented . | . . . . . . Kills | -11 -10 -10 -10 -9 -8 ------- Run | Scr Mat Min Exi Min Mat Combat Hostiles Destroyed 20 | . 2 7 . 11 . Guns 6 | . 2 4 . . . AOE 14 | . . 3 . 11 . Classes Destroyed 8 | 1 2 3 . 2 . Worker 1 | . . 1 . . . Builder 1 | . . . . 1 . Tunneler 2 | . . 1 . 1 . Hauler 1 | . 1 . . . . Recycler 2 | 1 . . . 1 . Swarmer 8 | . 2 3 . 3 . Grunt 6 | . . 4 . 2 . Assembled 6 | . . . . 6 . Best Kill Streak 6 | 1 2 3 . 6 . Combat Bots Only 6 | . 2 3 . 6 . Max Kills in Single Turn 4 | 1 1 2 . 4 . Gunslinging . | . . . . . . Exploded 3 | . . 2 . 3 . Melee . | . . . . . . Uniques/NPCs Destroyed . | . . . . . . Combat | -11 -10 -10 -10 -9 -8 -------- Run | Scr Mat Min Exi Min Mat Damage Taken 558 | . 88 143 . 327 . Core 89 | . . 15 . 74 . Absorbed by Shields . | . . . . . . Core Remaining (%) 82 | 100 . . . 64 . Volleys Fired 34 | 2 6 17 . 9 . Largest 2 | 2 2 2 . 2 . Hottest 68 | 60 60 60 . 68 . Shots Fired 56 | 4 12 30 . 10 . Gun 43 | 4 12 26 . 1 . Cannon 1 | . . . . 1 . Launcher 12 | . . 4 . 8 . Special . | . . . . . . Kinetic 23 | 2 6 13 . 2 . Thermal . | . . . . . . Explosive 12 | . . 4 . 8 . Electromagnetic 21 | 2 6 13 . . . Robot Hit Streak 6 | 3 4 6 . 1 . Robot Miss Streak 3 | 1 2 1 . 3 . Penetration Max . | . . . . . . Secondary Targets . | . . . . . . Shots Hit Robots 26 | 3 6 15 . 2 . Core Hits 40 | 2 3 14 . 21 . Critical Hits . | . . . . . . Critical Kills . | . . . . . . Critical Parts Destroyed . | . . . . . . Melee Attacks . | . . . . . . Impact . | . . . . . . Slashing . | . . . . . . Piercing . | . . . . . . Sneak Attacks . | . . . . . . Combat Hostiles . | . . . . . . Follow-up Attacks . | . . . . . . Damage Inflicted 1489 | 38 118 443 . 890 . Guns 356 | 38 118 185 . 15 . Cannons . | . . . . . . Explosions 1133 | . . 258 . 875 . Melee . | . . . . . . Ramming . | . . . . . . Kinetic 210 | 13 53 129 . 15 . Thermal . | . . . . . . Explosive 1133 | . . 258 . 875 . Electromagnetic 146 | 25 65 56 . . . Impact . | . . . . . . Slashing . | . . . . . . Piercing . | . . . . . . Highest Corruption . | . . . . . . Average Corruption . | . . . . . . Corruption Purged . | . . . . . . Overload Shots . | . . . . . . Overflow Damage 40 | . . . . 40 . Projectiles . | . . . . . . Explosions 40 | . . . . 40 . Melee . | . . . . . . Knockbacks . | . . . . . . Impact . | . . . . . . Kinetic . | . . . . . . Secondary . | . . . . . . Self-Inflicted Damage 109 | . . 45 . 64 . Shots 3 | . . 1 . 2 . Rammed . | . . . . . . Targets Rammed . | . . . . . . Kicked . | . . . . . . Crushed . | . . . . . . Highest Temperature 36 | . . 36 . 15 . Average Temperature 16 | . . 20 . 7 . Received Heat Transfer 152 | . . 48 . 104 . Siege Activations . | . . . . . . Robots Corrupted . | . . . . . . Combat Hostiles . | . . . . . . Parts Fried 1 | . 1 . . . . Impact Corruptions . | . . . . . . Robots Melted . | . . . . . . Combat Hostiles . | . . . . . . Parts Melted . | . . . . . . Heat Transferred . | . . . . . . Parts Sabotaged . | . . . . . . Parts Stolen . | . . . . . . Parts Stripped . | . . . . . . Power Chain Reactions . | . . . . . . Missiles Intercepted . | . . . . . . Alert | -11 -10 -10 -10 -9 -8 ------- Run | Scr Mat Min Exi Min Mat Peak Influence 250 | 5 67 250 . 113 . Initial 43 | . 3 25 . . 43 Average 79 | 2 27 92 . 71 . Maximum Alert Level 1 | . . 1 . . . Low Security (%) 88 | 100 100 83 . 100 . Level 1 11 | . . 16 . . . Level 2 . | . . . . . . Level 3 . | . . . . . . Level 4 . | . . . . . . Level 5 . | . . . . . . High Security . | . . . . . . Max Security . | . . . . . . Squads Dispatched . | . . . . . . Investigation . | . . . . . . Extermination . | . . . . . . Reinforcement . | . . . . . . Assault . | . . . . . . Garrison . | . . . . . . Intercept . | . . . . . . Construction Impeded . | . . . . . . Haulers Reinforced . | . . . . . . Stealth | -11 -10 -10 -10 -9 -8 --------- Run | Scr Mat Min Exi Min Mat Distress Signals . | . . . . . . Communications Jammed . | . . . . . . Distress Signals . | . . . . . . Times Spotted 34 | . 3 8 . 23 . Peak Tracking Total 17 | . 3 3 . 17 . Tactical Retreats 2 | . . 1 . 1 . Traps | -11 -10 -10 -10 -9 -8 ------- Run | Scr Mat Min Exi Min Mat Traps Triggered 1 | . 1 . . . . Indirectly . | . . . . . . Trap Hack Attempts . | . . . . . . Triggered . | . . . . . . Disarmed . | . . . . . . Reprogrammed . | . . . . . . Reused . | . . . . . . Traps Extracted . | . . . . . . Installed . | . . . . . . Triggered . | . . . . . . Machines | -11 -10 -10 -10 -9 -8 ---------- Run | Scr Mat Min Exi Min Mat Machines Disabled 1 | . . 1 . . . Max in Single Turn 1 | . . 1 . . . Machines Sabotaged . | . . . . . . Garrisons Compromised . | . . . . . . Overloaded Fab Kills . | . . . . . . Fab Network Shutdowns . | . . . . . . Hacking | -11 -10 -10 -10 -9 -8 --------- Run | Scr Mat Min Exi Min Mat Machines Accessed 3 | . 2 . 1 . . Terminals 2 | . 2 . . . . Fabricators . | . . . . . . Repair Stations . | . . . . . . Recycling Units . | . . . . . . Scanalyzers . | . . . . . . Garrison Access . | . . . . . . Total Hacks 9 | . 8 . 1 . . Successful 4 | . 3 . 1 . . Failed 5 | . 5 . . . . Catastrophic . | . . . . . . Database Lockouts . | . . . . . . Manual 6 | . 6 . . . . Terminals 8 | . 8 . . . . Fabricators . | . . . . . . Repair Stations . | . . . . . . Recycling Units . | . . . . . . Scanalyzers . | . . . . . . Garrison Access . | . . . . . . Terminal Hacks 4 | . 3 . 1 . . Record 1 | . . . 1 . . Robot Analysis 2 | . 2 . . . . Prototype ID Bank 1 | . 1 . . . . Fabricator Hacks . | . . . . . . Repair Station Hacks . | . . . . . . Recycling Unit Hacks . | . . . . . . Scanalyzer . | . . . . . . Garrison Access Hacks . | . . . . . . Unauthorized Hacks . | . . . . . . Terminals . | . . . . . . Fabricators . | . . . . . . Repair Stations . | . . . . . . Recycling Units . | . . . . . . Scanalyzers . | . . . . . . Garrison Access . | . . . . . . Data Cores Recovered . | . . . . . . Used . | . . . . . . Hacking Detections 2 | . 2 . . . . Full Trace Events . | . . . . . . Feedback Events . | . . . . . . Feedback Blocked . | . . . . . . Robot Schematics Acquired . | . . . . . . Robots Built . | . . . . . . Matter . | . . . . . . Time . | . . . . . . Total Robot Build Rating . | . . . . . . Part Schematics Acquired . | . . . . . . Parts Built . | . . . . . . Matter . | . . . . . . Time . | . . . . . . Total Part Build Rating . | . . . . . . Parts Repaired . | . . . . . . Time . | . . . . . . Parts Recycled . | . . . . . . Recycled Matter . | . . . . . . Retrieved Matter . | . . . . . . Retrieved Components . | . . . . . . Parts Scanalyzed . | . . . . . . Part Schematics Acquired . | . . . . . . Parts Damaged . | . . . . . . Bothacking | -11 -10 -10 -10 -9 -8 ------------ Run | Scr Mat Min Exi Min Mat Used RIF Installer . | . . . . . . Robots Hacked . | . . . . . . Non-combat . | . . . . . . Combat . | . . . . . . Robot Hacks Applied . | . . . . . . Relay Couplers Released . | . . . . . . Robots Rewired . | . . . . . . Allies Hacked . | . . . . . . Hacks Repelled . | . . . . . . Allies | -11 -10 -10 -10 -9 -8 -------- Run | Scr Mat Min Exi Min Mat Total Allies 5 | . . 3 . 2 . Largest Group 3 | . . 3 . 2 . Highest-Rated Group 42 | . . 40 . 42 . Highest-Rated Ally 31 | . . 16 . 31 . Total Orders . | . . . . . . Ally Attacks 2 | . . . . 2 . Total Damage 22 | . . . . 22 . Kills 1 | . . . . 1 . Allies Corrupted . | . . . . . . Allies Melted . | . . . . . . Intel | -11 -10 -10 -10 -9 -8 ------- Run | Scr Mat Min Exi Min Mat Robot Analysis Total 2 | . 2 . . . . Derelict Logs Recovered 1 | . . 1 . . . Drone Launches . | . . . . . . Drone Recoveries . | . . . . . . Exploration | -11 -10 -10 -10 -9 -8 ------------- Run | Scr Mat Min Exi Min Mat Turns Passed 1712 | 17 184 932 414 165 . Spaces Moved 1245 | 8 137 707 302 91 . Core . | . . . . . . Treads . | . . . . . . Legs . | . . . . . . Wheels 1245 | 8 137 707 302 91 . Hover . | . . . . . . Flight . | . . . . . . Fastest Speed 100 | 100 100 120 100 150 . Average Speed 123 | 100 109 120 132 150 . Slowest Speed 150 | 100 120 120 150 150 . Overloaded Moves . | . . . . . . Propulsion Burnouts . | . . . . . . Robots Hopped . | . . . . . . Cave-ins Triggered . | . . . . . . Exploration Rate (%) 35 | 2 24 99 56 28 1 Regions Visited 5 Branch Regions 3 Pre-discovered Areas 3 | . . 2 1 . . Known Exits Taken . | . . . . . . Unknown Exits Taken 5 | 1 1 1 1 1 . Scrap Searched 3 | . . 2 . 1 . Spaces Dug 10 | . . . . 10 . Terrain Destroyed 106 | . . 47 . 59 . Melee . | . . . . . . Projectile . | . . . . . . AOE 106 | . . 47 . 59 . Terrain Rammed . | . . . . . . Walls Destroyed . | . . . . . . Machines Disabled . | . . . . . . Actions | -11 -10 -10 -10 -9 -8 --------- Run | Scr Mat Min Exi Min Mat Total 1359 | 14 160 758 318 109 . Wait 28 | . 3 24 . 1 . Move 1240 | 7 136 706 301 90 . Hop . | . . . . . . Pick Up 30 | . 9 4 14 3 . Fast Attach 2 | . 1 . 1 . . Attach 5 | 2 1 . . 2 . Detach 1 | . 1 . . . . Swap 8 | . 1 4 . 3 . Drop 8 | 3 2 . 2 1 . Fire 34 | 2 6 17 . 9 . Melee . | . . . . . . Ram . | . . . . . . Kick . | . . . . . . Crush . | . . . . . . Escape Stasis . | . . . . . . Rewire 3 | . . 3 . . . Trap . | . . . . . . Miscellaneous . | . . . . . . Route ------- -11/Scrapyard -10/Materials -10/Mines (discovered 3 exits: [*Mat x2] / *Exi) -10/Exiles -9/Mines -8/Materials History --------- Turn | Location | Event 11 | -11/Scrapyard | Discovered new exit (range 3) 18 | -11/Scrapyard | Entered Materials 131 | -10/Materials | Discovered new exit (range 7) 202 | -10/Materials | Entered Mines 301 | -10/Mines | Build established: Mutant 343 | -10/Mines | Discovered new exit (range 3) 394 | -10/Mines | Deemed a non-threat by the Exiles lab entrance 396 | -10/Mines | Discovered new exit (range 5) 470 | -10/Mines | Discovered new exit (range 10) 471 | -10/Mines | Learned location of Storage (-9) 680 | -10/Mines | Learned location of Recycling (-9) 785 | -10/Mines | Assisted by bots powering up and referring to "LRC-V3" 978 | -10/Mines | A weapon hastily lodged in a ceiling crevice suddenly fell to the ground 1134 | -10/Mines | Entered Exiles 1166 | -10/Exiles | Met 8R-AWN 1185 | -10/Exiles | Met EX-HEX 1245 | -10/Exiles | Met EX-DEC 1266 | -10/Exiles | Learned location of Zion (-7) 1530 | -10/Exiles | Discovered new exit (range 14) 1548 | -10/Exiles | Entered Mines 1557 | -9/Mines | Assembled infested the area 1629 | -9/Mines | Build established: Hauler-Mutant 1698 | -9/Mines | Discovered new exit (range 10) 1713 | -9/Mines | Entered Materials 1713 | -8/Materials | Evolved 4 slots: Propulsion x1, Utility x3 1713 | -8/Materials | Self-destructed Last Messages --------------- 01637_ Destroyed Lgt. Ion Engine. 01637_ S-10 Pest destroyed. 01637_ T-07 Excavator destroyed. 01637_ U-05 Engineer destroyed. 01639_ R-06 Scavenger destroyed. 01639_ S-10 Pest destroyed. 01643_ U-05 Engineer builds a Wall. 01645_ The unstable cave ceiling collapses. 01646_ Acquired 2 matter. 01647_ U-05 Engineer lays Concrete. 01649_ Acquired 35 matter. 01650_ U-05 Engineer lays Concrete. 01651_ U-05 Engineer builds a Wall. 01656_ Acquired 13 matter. 01659_ U-05 Engineer lays Concrete. 01664_ Acquired 24 matter. 01698_ EXIT=FOUND PARAMETERS=PROPULSION_1,UTILITY_3 LOCATION=UNKNOWN GOAL=ESCAPE Map ----- +----------------------------------------------------+ | ???????????????????????????????????????? | | ???????????????????????????????????????? | | ???????????????????????????????????????? | | ???????????????????????????????????????? | | ???????????????????????????????????????? | | ???????????????????????????????????????? | | ???????????????????????????????????????? | | ???????????????????????????????????????? | | ???????????????????????????????????????? | | ???????????????????????????????????????? | | ???????????????????????????????????????? | | ???????????????????????????????????????? | | ???????????????????????????????????????? | | ???????????????????????????????????????? | | ???????????????????????????????????????? | | ???????????????????????????????????????? | | ???????????????????????????????????????? | | ???????????????????????????????????????? | | ???????????????????????????????????????? | | ???????????????????????????????????????? | | ???????????????????????????????????????? | | ???????????????????????????????????????? | | ???????????????????????????????????????? | | ?????????????####+##########???????????? | | ?????????????# ????????? | | ?????????????# @ ????????? | | ?????????????# ????????? | | ?????????????####+######+###???????????? | | ???????????????????????????????????????? | | ???????????????????????????????????????? | | ???????????????????????????????????????? | | ???????????????????????????????????????? | | ???????????????????????????????????????? | | ???????????????????????????????????????? | | ???????????????????????????????????????? | | ???????????????????????????????????????? | | ???????????????????????????????????????? | | ???????????????????????????????????????? | | ???????????????????????????????????????? | | ???????????????????????????????????????? | | ???????????????????????????????????????? | | ???????????????????????????????????????? | | ???????????????????????????????????????? | | ???????????????????????????????????????? | | ???????????????????????????????????????? | | ???????????????????????????????????????? | | ???????????????????????????????????????? | | ???????????????????????????????????????? | | ???????????????????????????????????????? | | ???????????????????????????????????????? | +----------------------------------------------------+ Best States ------------- Heat Dissipation 25 Energy Generation 10 Energy Capacity 250 Matter Stores 300 Matter Capacity 300 Sight Range 16 Terrain Scan Density 10 Evasion (%) 40 Targeting Accuracy 6 Recoil Reduction 1 Item Schematics ----------------- None Robot Schematics ------------------ None Fabricated ------------ Nothing Alien Tech Used ----------------- None Achievements -------------- None Challenges ------------ None Game ------ Seed SniperModifiedAccelerator Manual? 0 Play Time 00:10:51 Cumulative 64.6 hours Start 2020.11.05 @ 18:25:27 End 2020.11.05 @ 18:36:07 Sessions 1 Manual Loads 0 Difficulty Rogue Special Mode Halloween2020/ForbiddenLore Game No. 43 Rogue 43 Adventurer 0 Explorer 0 Win Type - Total 1 Types 1/0/0/0/0/0/0/0/0 Lore% 29 Gallery% 41 Achievement% 35 Wizard Run 0 Options --------- ASCII 1 Keyboard 1 Movement Vi Keybinds 0 Fullscreen 1 Font 16/Terminus Map View 75x55 Tactical HUD 1 Map Filters NONE Filters NONE Steam 1 RUN: e819874a-f8df-4701-abc4-ee1ef568be21